bitfinex/quotes_SOLUSD_20250830
["timestamp","ask_amount","ask_price","bid_price","bid_amount"]
[1756571461131,7.33661197,200.74,200.7,4.72051711]
[1756571461321,7.33661197,200.73,200.71,43.34051711]
[1756571461606,8.02661197,200.72,200.71,38.62]
[1756571461835,8.02661197,200.72,200.71,43.34051711]
[1756571463030,4.35840586,200.72,200.71,43.34051711]
[1756571463946,0.69,200.77,200.72,13.59559401]
[1756571464230,3.66076127,200.76,200.74,13.59559401]
[1756571464462,0.69,200.78,200.76,13.59559401]
[1756571464671,0.69,200.78,200.77,38.62]
[1756571464848,4.34767369,200.78,200.77,38.62]
[1756571465045,3.65767369,200.78,200.77,52.21559401]
[1756571465268,9.14732759,200.86,200.78,13.59559401]
[1756571465269,0.69,200.81,200.78,13.59559401]
[1756571465460,8.0059705,200.8,200.79,48.34084481]
[1756571465663,4.34798525,200.8,200.79,61.93643882]
[1756571465962,0.69,200.82,200.79,61.93643882]
[1756571466162,3.65470538,200.81,200.8,13.59559401]
[1756571466369,4.34470538,200.81,200.8,52.21559401]
[1756571466742,0.69,200.81,200.8,52.21559401]
[1756571467364,0.69,200.83,200.8,56.93611112]
[1756571467555,0.69,200.83,200.81,9.70034879]
[1756571467736,0.69,200.83,200.82,38.62]
[1756571467938,3.64944891,200.83,200.82,38.62]
[1756571468263,30.72051711,200.87,200.81,4.72051711]
[1756571468476,4.72051711,200.82,200.74,4.98156819]
[1756571468765,30.97845382,200.87,200.74,4.98156819]
[1756571468766,9.05967954,200.81,200.76,18.31611112]
[1756571468952,0.69,200.8,200.77,38.64]
[1756571469143,0.69,200.79,200.77,43.36051711]
[1756571469455,4.97845382,200.87,200.77,43.36051711]
[1756571469456,0.69,200.81,200.78,4.72051711]
[1756571469634,0.69,200.8,200.78,4.72051711]
[1756571470262,0.69,200.8,200.79,38.64]
[1756571470636,0.69,200.8,200.78,9.7010483]
[1756571470935,0.69,200.8,200.77,4.98081602]
[1756571471152,4.97886608,200.85,200.78,38.62]
[1756571471153,4.72051711,200.82,200.78,38.62]
[1756571471334,0.69,200.8,200.77,4.72051711]
[1756571471535,0.69,200.8,200.78,38.62]
[1756571471760,0.69,200.79,200.78,38.62]
[1756571472552,0.69,200.81,200.78,43.60052406]
[1756571472738,12.445314,200.88,200.78,43.60052406]
[1756571472739,0.69,200.84,200.8,4.72051711]
[1756571473078,0.69,200.83,200.8,43.34051711]
[1756571473252,4.72051711,200.85,200.8,43.34051711]
[1756571473253,0.69,200.82,200.8,43.34051711]
[1756571473964,0.69,200.85,200.81,18.31611112]
[1756571474160,26.0,200.88,200.82,43.34051711]
[1756571474161,0.69,200.84,200.82,43.34051711]
[1756571474377,0.69,200.84,200.82,38.62]
[1756571474559,0.69,200.87,200.82,43.34051711]
[1756571474759,0.69,200.86,200.83,4.72051711]
[1756571474962,0.69,200.86,200.84,38.64]
[1756571476663,0.69,200.86,200.83,9.6996293]
[1756571476964,0.69,200.85,200.84,38.62]
[1756571477464,0.69,200.85,200.82,9.70007164]
[1756571477666,0.69,200.85,200.83,38.62]
[1756571478084,0.69,200.85,200.83,43.59926801]
[1756571478272,0.69,200.85,200.83,4.97926801]
[1756571478479,0.69,200.85,200.84,38.62]
[1756571478886,4.72051711,200.87,200.84,38.62]
[1756571479086,5.41051711,200.9,200.85,18.31611112]
[1756571479290,0.69,200.89,200.86,43.32051711]
[1756571479693,0.69,200.89,200.87,18.31611112]
[1756571479877,0.69,200.89,200.88,38.62]
[1756571480075,0.69,200.88,200.86,38.62]
[1756571480380,0.69,200.9,200.87,18.31611112]
[1756571480582,0.69,200.89,200.88,52.23559401]
[1756571480778,0.69,200.89,200.88,13.59559401]
[1756571480978,0.69,200.89,200.88,52.23559401]
[1756571482279,0.69,200.89,200.88,13.59559401]
[1756571482595,0.69,200.89,200.88,52.23559401]
[1756571482893,0.69,200.89,200.88,13.59559401]
[1756571483082,0.69,200.89,200.88,52.23559401]
[1756571483282,0.75,200.89,200.88,52.23559401]
[1756571486078,0.06,200.89,200.88,56.95611112]
[1756571487196,0.06,200.89,200.88,61.93420749]
[1756571487389,0.06,200.89,200.88,57.21369038]
[1756571487597,0.06,200.89,200.88,57.17369038]
[1756571489487,0.06,200.89,200.88,13.59559401]
[1756571489691,0.06,200.89,200.88,52.17559401]
[1756571491195,0.06,200.89,200.88,13.59559401]
[1756571491401,0.78,200.89,200.88,52.17559401]
[1756571491710,0.06,200.89,200.88,52.17559401]
[1756571493186,3.70190105,200.89,200.88,52.17559401]
[1756571494908,3.70190105,200.89,200.88,52.15559401]
[1756571495404,3.70190105,200.89,200.88,52.13559401]
[1756571496382,0.06,200.89,200.88,52.13559401]
[1756571497097,3.7142876,200.89,200.88,52.13559401]
[1756571497388,7.37211813,200.89,200.88,52.13559401]
[1756571499384,7.37211813,200.89,200.88,57.81369038]
[1756571499580,7.37211813,200.89,200.88,62.53420749]
[1756571499997,3.71783053,200.89,200.88,62.53420749]
[1756571500201,3.71783053,200.89,200.88,23.29420749]
[1756571500403,3.71783053,200.89,200.88,57.09369038]
[1756571501215,3.71783053,200.89,200.88,61.81420749]
[1756571501918,3.71783053,200.89,200.88,62.51420749]
[1756571503105,0.06,200.89,200.88,62.51420749]
[1756571503614,0.06,200.89,200.88,23.99420749]
[1756571503812,0.06,200.89,200.88,62.51420749]
[1756571504821,0.06,200.89,200.88,23.29420749]
[1756571505204,0.06,200.89,200.88,61.81420749]
[1756571506608,0.06,200.89,200.88,62.51420749]
[1756571507796,0.06,200.89,200.88,23.29420749]
[1756571507998,0.06,200.89,200.88,61.81420749]
[1756571508618,0.06,200.89,200.88,13.59559401]
[1756571508824,0.78,200.89,200.88,38.52]
[1756571509004,5.50051711,200.89,200.88,38.52]
[1756571509205,0.06,200.89,200.88,57.53611112]
[1756571511028,0.06,200.89,200.88,62.51420749]
[1756571513020,1e-08,200.92,200.91,44.31611112]
[1756571513321,1e-08,200.94,200.92,13.59559401]
[1756571513521,1e-08,200.94,200.93,56.95611112]
[1756571513731,1e-08,200.94,200.93,57.65611112]
[1756571513908,1e-08,200.94,200.93,62.37662812]
[1756571514431,1e-08,200.94,200.93,67.35348573]
[1756571515639,0.72,201.08,201.02,13.59559401]
[1756571515926,0.72,201.08,201.05,18.31611112]
[1756571516217,0.72,201.07,201.06,52.23559401]
[1756571517029,0.82,201.1,201.07,13.59559401]
[1756571517336,0.82,201.1,201.09,13.59559401]
[1756571517836,0.82,201.1,201.07,4.72051711]
[1756571518036,0.1,201.1,201.09,13.59559401]
[1756571518240,0.1,201.1,201.09,52.27559401]
[1756571518738,0.82,201.1,201.09,52.27559401]
[1756571518935,0.82,201.1,201.09,13.59559401]
[1756571519138,0.82,201.1,201.09,52.27559401]
[1756571520456,5.54051711,201.1,201.09,52.27559401]
[1756571520931,0.82,201.1,201.09,52.27559401]
[1756571521436,0.82,201.1,201.07,4.87479585]
[1756571521628,0.81,201.1,201.08,52.27559401]
[1756571521816,0.1,201.1,201.08,52.27559401]
[1756571522926,0.1,201.1,201.08,61.96909568]
[1756571523157,0.1,201.1,201.08,57.24857857]
[1756571523446,0.1,201.1,201.08,61.96909568]
[1756571523817,0.1,201.1,201.09,19.03611112]
[1756571524034,0.1,201.1,201.09,18.31611112]
[1756571524452,0.1,201.1,201.09,19.03611112]
[1756571524650,0.1,201.1,201.09,18.31611112]
[1756571525056,0.1,201.1,201.09,23.28900882]
[1756571525868,0.1,201.1,201.09,61.96900882]
[1756571526055,0.81,201.1,201.09,52.27559401]
[1756571526243,5.53051711,201.1,201.09,52.27559401]
[1756571526443,5.53051711,201.1,201.07,4.91263901]
[1756571526641,0.71,201.09,201.06,38.7]
[1756571526981,4.72051711,201.07,201.06,52.29559401]
[1756571527189,5.43051711,201.07,201.06,52.29559401]
[1756571527563,0.71,201.07,201.06,52.29559401]
[1756571527789,4.72051711,201.08,201.06,52.29559401]
[1756571528205,0.71,201.07,201.06,52.29559401]
[1756571528703,0.1,201.1,201.07,13.59559401]
[1756571528990,0.1,201.1,201.09,13.59559401]
[1756571529288,0.81,201.1,201.09,13.59559401]
[1756571529456,0.81,201.1,201.09,52.37559401]
[1756571529661,0.1,201.1,201.09,108.47559401]
[1756571530575,0.1,201.1,201.09,113.19611112]
[1756571530768,0.1,201.1,201.09,108.47559401]
[1756571531170,0.1,201.1,201.09,113.44849171]
[1756571531583,5.53051711,201.1,201.06,52.37559401]
[1756571531789,4.72051711,201.07,201.06,13.59559401]
[1756571531962,4.72051711,201.07,201.06,52.37559401]
[1756571532167,0.71,201.07,201.06,52.37559401]
[1756571532872,5.43051711,201.07,201.06,52.37559401]
[1756571533282,0.71,201.07,201.0,13.59559401]
[1756571533477,4.72051711,201.04,200.99,19.9293534]
[1756571533686,4.72051711,201.02,201.0,52.41559401]
[1756571534184,5.43051711,201.01,200.93,9.94975561]
[1756571534383,0.71,201.01,200.95,13.59559401]
[1756571534582,26.0,201.06,200.96,43.54051711]
[1756571534886,4.72051711,201.01,200.96,44.26051711]
[1756571535067,0.71,201.03,200.96,44.26051711]
[1756571535269,4.72051711,201.01,200.98,13.59559401]
[1756571535470,4.72051711,200.99,200.98,13.59559401]
[1756571535679,5.43051711,200.99,200.94,0.03]
[1756571535883,4.97388709,201.05,200.96,52.41559401]
[1756571535884,4.72051711,200.97,200.96,52.41559401]
[1756571536180,0.71,200.98,200.96,52.41559401]
[1756571536181,4.72051711,200.98,200.96,52.41559401]
[1756571536570,5.43051711,200.97,200.96,52.41559401]
[1756571536774,5.43051711,200.97,200.94,0.03]
[1756571537005,4.72051711,200.95,200.94,0.03]
[1756571537600,5.43051711,200.95,200.94,0.03]
[1756571537787,0.71,200.95,200.94,0.03]
[1756571538098,5.43051711,200.95,200.94,0.03]
[1756571540081,10.40687938,200.95,200.94,0.03]
[1756571541309,5.43051711,200.95,200.94,0.03]
[1756571542603,0.71,201.02,200.95,13.59559401]
[1756571542803,4.16856672,201.09,200.95,13.59559401]
[1756571542804,4.16856672,201.09,200.98,4.72051711]
[1756571543106,4.72051711,201.04,201.0,13.59559401]
[1756571543315,7.49661694,201.04,201.0,18.57070255]
[1756571543490,7.49661694,201.04,201.0,4.97510854]
[1756571543986,8.20661694,201.03,200.99,13.59559401]
[1756571544702,0.1,201.1,201.02,7.49661694]
[1756571544887,7.49661694,201.07,201.02,7.49661694]
[1756571545080,7.49661694,201.07,201.03,0.72]
[1756571545285,7.49661694,201.07,201.03,5.69429104]
[1756571545593,0.1,201.1,201.03,13.19090798]
[1756571545789,0.71,201.09,201.03,12.47090798]
[1756571545990,7.49661694,201.04,200.99,13.59559401]
[1756571546188,8.20661694,201.03,200.99,13.59559401]
[1756571546908,0.71,201.02,200.99,13.59559401]
[1756571547109,0.71,201.01,200.98,13.59559401]
[1756571547283,0.71,201.0,200.98,13.59559401]
[1756571548085,8.20661694,201.0,200.98,13.59559401]
[1756571548300,0.71,201.0,200.98,13.59559401]
[1756571548805,4.97415406,201.04,200.97,13.59559401]
[1756571549006,7.49661694,201.01,200.97,13.59559401]
[1756571549399,8.20661694,201.01,200.97,13.59559401]
[1756571549706,8.20661694,201.01,200.97,18.57143828]
[1756571550016,26.0,201.05,200.95,0.72]
[1756571550188,7.49661694,200.99,200.94,0.03]
[1756571550387,0.71,201.0,200.94,0.03]
[1756571550711,26.0,201.01,200.95,13.59559401]
[1756571550712,7.49661694,200.99,200.95,13.59559401]
[1756571550897,8.20661694,200.99,200.95,13.59559401]
[1756571551111,7.49661694,200.98,200.95,13.59559401]
[1756571551312,7.49661694,200.98,200.94,0.03]
[1756571551489,8.16661694,200.98,200.94,13.62559401]
[1756571551689,7.49661694,200.97,200.94,13.62559401]
[1756571551899,0.67,200.98,200.94,13.62559401]
[1756571552191,0.67,201.01,200.94,19.28220104]
[1756571552388,7.49661694,200.98,200.94,19.28220104]
[1756571552600,0.06,200.99,200.94,19.28220104]
[1756571552813,7.49661694,200.97,200.94,13.62559401]
[1756571553016,7.49661694,200.95,200.94,0.03]
[1756571553313,8.16661694,200.95,200.94,0.03]
[1756571559484,13.14297921,200.95,200.94,0.03]
[1756571560792,39.14297921,200.95,200.94,0.03]
[1756571563424,36.33873023,200.95,200.94,0.03]
[1756571564310,75.53873023,200.95,200.94,0.03]
[1756571564521,75.51873023,200.95,200.94,0.03]
[1756571565139,31.64636227,200.95,200.94,0.03]
[1756571565318,75.51873023,200.95,200.94,0.03]
[1756571566104,36.33873023,200.95,200.94,0.03]
[1756571566301,75.51873023,200.95,200.94,0.03]
[1756571567425,75.49873023,200.95,200.94,0.03]
[1756571567728,36.33873023,200.95,200.94,0.03]
[1756571568031,75.47873023,200.95,200.94,0.03]
[1756571569905,75.45873023,200.95,200.94,0.03]
[1756571570510,36.33873023,200.95,200.94,0.03]
[1756571570733,75.45873023,200.95,200.94,0.03]
[1756571571036,75.51873023,200.95,200.94,0.03]
[1756571573032,49.51873023,200.95,200.94,0.03]
[1756571573223,49.51873023,200.95,200.91,0.03]
[1756571573224,26.0,200.92,200.91,0.03]
[1756571573431,69.79236796,200.92,200.91,0.03]
[1756571573817,4.69236796,200.92,200.91,0.03]
[1756571574017,43.83236796,200.92,200.91,0.03]
[1756571574226,0.06,200.95,200.91,0.71]
[1756571574532,0.06,200.95,200.92,13.59559401]
[1756571574718,0.06,200.95,200.93,0.68]
[1756571575116,0.06,200.95,200.94,0.68]
[1756571576032,4.75236796,200.95,200.92,0.68]
[1756571576235,4.75236796,200.95,200.93,0.68]
[1756571576452,4.75236796,200.95,200.91,5.00716798]
[1756571576612,4.75236796,200.95,200.92,0.68]
[1756571577645,0.06,200.95,200.93,0.68]
[1756571577823,4.69236796,200.94,200.91,0.03]
[1756571578029,4.69236796,200.93,200.91,0.03]
[1756571578340,4.75236796,200.95,200.92,0.68]
[1756571578649,4.75236796,200.95,200.93,0.68]
[1756571578843,4.75236796,200.95,200.91,0.71]
[1756571579046,4.69236796,200.94,200.91,0.71]
[1756571579549,0.73,200.95,200.91,0.71]
[1756571579748,0.73,200.95,200.91,0.03]
[1756571579925,0.67,200.94,200.91,0.03]
[1756571580363,30.69236796,200.92,200.91,0.03]
[1756571580730,26.0,200.92,200.91,0.03]
[1756571581551,36.33947327,200.92,200.91,0.03]
[1756571581731,31.36236796,200.92,200.91,0.03]
[1756571582046,65.24,200.92,200.91,0.03]
[1756571582578,4.16856672,200.94,200.92,13.59559401]
[1756571582850,0.06,200.95,200.94,13.59559401]
[1756571583230,0.06,200.95,200.94,14.26559401]
[1756571583440,0.06,200.95,200.94,19.24220394]
[1756571584251,0.06,200.95,200.94,23.9345719]
[1756571587334,0.73,200.95,200.91,0.03]
[1756571587535,30.69236796,200.92,200.91,0.03]
[1756571587941,31.36236796,200.92,200.91,0.03]
[1756571588142,70.72236796,200.92,200.91,0.03]
[1756571589863,75.69947327,200.92,200.91,0.03]
[1756571590552,30.69236796,200.92,200.91,0.03]
[1756571591438,34.17730315,200.92,200.91,0.03]
[1756571591839,39.15440846,200.92,200.91,0.03]
[1756571592054,43.32297518,200.92,200.91,0.03]
[1756571592960,43.32297518,200.92,200.89,0.03]
[1756571592961,20.0,200.91,200.89,0.03]
[1756571593154,59.90495168,200.9,200.89,0.03]
[1756571593462,60.57495168,200.9,200.88,0.03]
[1756571593842,19.99245487,200.89,200.88,0.03]
[1756571594048,51.84515172,200.89,200.88,0.03]
[1756571594249,52.51515172,200.89,200.88,0.03]
[1756571595548,60.02245487,200.89,200.88,0.03]
[1756571596355,26.0,200.86,200.77,0.67]
[1756571596560,7.50730315,200.8,200.77,0.67]
[1756571596867,7.50730315,200.79,200.77,0.67]
[1756571597050,7.50730315,200.78,200.75,14.26559401]
[1756571597363,7.50730315,200.78,200.75,0.67]
[1756571597668,26.67,200.82,200.76,0.67]
[1756571597844,7.50730315,200.79,200.76,0.67]
[1756571598037,7.50730315,200.78,200.76,0.67]
[1756571599470,7.50730315,200.79,200.76,0.67]
[1756571599676,7.50730315,200.78,200.76,0.67]
[1756571600666,7.50730315,200.78,200.74,4.98140337]
[1756571600874,7.50730315,200.79,200.75,0.67]
[1756571602371,7.50730315,200.79,200.75,5.65130111]
[1756571602575,65.99,200.81,200.75,5.65130111]
[1756571602746,7.50730315,200.79,200.75,5.65130111]
[1756571604672,7.50730315,200.79,200.74,4.9815593]
[1756571604863,7.50730315,200.78,200.73,21.30289716]
[1756571605170,8.17730315,200.77,200.73,13.79559401]
[1756571605354,7.50730315,200.77,200.73,13.79559401]
[1756571605555,7.50730315,200.77,200.73,14.46559401]
[1756571605768,7.50730315,200.77,200.73,13.79559401]
[1756571606062,0.67,200.79,200.74,0.67]
[1756571606270,7.50730315,200.77,200.74,0.67]
[1756571607372,7.50730315,200.77,200.73,13.79559401]
[1756571607575,7.50730315,200.77,200.73,19.44733119]
[1756571608672,7.50730315,200.75,200.73,0.2]
[1756571608970,8.17730315,200.77,200.73,0.87]
[1756571609170,8.17730315,200.77,200.74,0.03]
[1756571610267,30.97983193,200.81,200.74,0.03]
[1756571610572,33.50730315,200.78,200.74,0.03]
[1756571610790,7.50730315,200.77,200.74,0.03]
[1756571610977,7.50730315,200.76,200.74,0.03]
[1756571611465,4.69865712,200.76,200.74,0.03]
[1756571611661,5.36865712,200.77,200.74,0.03]
[1756571611974,4.69865712,200.77,200.74,0.03]
[1756571612276,0.66,200.76,200.74,0.03]
[1756571612456,5.35865712,200.76,200.74,0.03]
[1756571612659,5.35865712,200.75,200.74,0.03]
[1756571613676,4.69865712,200.75,200.74,0.03]
[1756571613974,5.35865712,200.75,200.74,0.03]
[1756571617185,0.66,200.75,200.74,0.03]
[1756571617373,0.66,200.77,200.74,0.03]
[1756571617574,4.69865712,200.76,200.74,0.03]
[1756571617887,5.35865712,200.76,200.74,0.03]
[1756571618970,0.66,200.75,200.74,0.03]
[1756571620305,5.35865712,200.76,200.74,0.03]
[1756571620586,4.98010966,200.8,200.74,0.03]
[1756571620815,0.66,200.8,200.76,4.69865712]
[1756571621484,0.66,200.79,200.75,9.67996734]
[1756571622388,0.66,200.79,200.75,4.69865712]
[1756571622590,26.0,200.75,200.74,0.03]
[1756571622786,5.35865712,200.75,200.74,0.03]
[1756571623811,26.0,200.77,200.74,0.03]
[1756571623989,5.55034538,200.81,200.75,4.69865712]
[1756571623990,0.66,200.8,200.75,4.69865712]
[1756571624179,4.69865712,200.8,200.74,0.03]
[1756571624379,5.35865712,200.8,200.75,4.69865712]
[1756571624609,5.35865712,200.8,200.75,0.7]
[1756571625104,4.69865712,200.8,200.74,4.72865712]
[1756571625287,0.66,200.79,200.74,9.71016155]
[1756571625478,0.66,200.79,200.74,10.41016155]
[1756571625878,4.69865712,200.79,200.74,0.03]
[1756571626084,0.66,200.78,200.74,0.03]
[1756571626808,5.35865712,200.78,200.74,0.03]
[1756571627010,5.35865712,200.78,200.74,5.01150909]
[1756571627305,8.17661698,200.78,200.74,5.01150909]
[1756571627813,7.51661698,200.76,200.74,0.03]
[1756571628012,8.17661698,200.77,200.74,0.03]
[1756571628218,26.0,200.77,200.74,0.03]
[1756571628695,39.2,200.8,200.75,0.7]
[1756571629013,7.51661698,200.79,200.75,0.7]
[1756571629918,8.17661698,200.79,200.74,12.52795363]
[1756571630104,0.66,200.78,200.74,12.52795363]
[1756571630708,7.51661698,200.79,200.74,0.03]
[1756571630709,8.17661698,200.77,200.74,0.03]
[1756571631110,0.66,200.76,200.74,0.03]
[1756571631304,8.17661698,200.76,200.74,0.03]
[1756571631695,7.51661698,200.78,200.74,0.03]
[1756571632026,12.33836353,200.8,200.75,7.51661698]
[1756571632319,0.66,200.79,200.75,7.51661698]
[1756571633405,0.66,200.79,200.75,12.49782208]
[1756571633603,0.66,200.79,200.75,4.9812051]
[1756571633911,0.66,200.78,200.74,12.52813021]
[1756571634095,7.51661698,200.79,200.74,13.22813021]
[1756571634298,8.17661698,200.79,200.74,13.22813021]
[1756571634514,8.17661698,200.78,200.74,0.03]
[1756571634728,7.51661698,200.77,200.74,0.03]
[1756571634933,8.17661698,200.78,200.74,0.03]
[1756571635122,0.66,200.77,200.74,0.03]
[1756571636518,8.17661698,200.76,200.74,0.03]
[1756571636722,11.67836353,200.77,200.74,0.03]
[1756571636915,0.66,200.76,200.74,0.03]
[1756571640532,4.16174655,200.76,200.74,0.03]
[1756571640706,4.16174655,200.79,200.75,8.21661698]
[1756571640906,4.16174655,200.79,200.76,8.21661698]
[1756571641108,4.16174655,200.79,200.76,7.51661698]
[1756571642005,4.16174655,200.79,200.74,21.14221099]
[1756571642208,0.7,200.78,200.74,21.14221099]
[1756571642712,8.21661698,200.77,200.74,0.03]
[1756571642915,4.16174655,200.76,200.74,0.03]
[1756571643110,4.86174655,200.76,200.74,0.03]
[1756571643917,8.21661698,200.75,200.74,0.03]
[1756571644718,5.68132004,200.75,200.74,0.03]
[1756571645037,39.19793702,200.75,200.74,0.03]
[1756571645340,13.19793702,200.75,200.74,0.03]
[1756571648944,26.0,200.74,200.73,0.2]
[1756571649132,7.51661698,200.72,200.71,0.03]
[1756571649635,8.21661698,200.72,200.71,0.03]
[1756571649941,13.59559401,200.71,200.69,0.03]
[1756571650243,26.0,200.68,200.62,0.03]
[1756571650446,13.0590262,200.68,200.62,0.03]
[1756571650738,39.75512823,200.68,200.62,0.03]
[1756571650945,6.23851125,200.68,200.62,0.73]
[1756571651125,46.65661698,200.68,200.63,0.7]
[1756571651320,52.33967458,200.68,200.62,0.03]
[1756571652118,52.37967458,200.68,200.62,0.03]
[1756571652645,52.35967458,200.68,200.62,0.03]
[1756571653843,30.1441046,200.68,200.63,0.7]
[1756571654140,30.1441046,200.68,200.64,0.7]
[1756571654141,72.67661698,200.68,200.64,0.7]
[1756571654446,82.50230535,200.68,200.62,0.03]
[1756571654943,77.51924775,200.68,200.63,0.7]
[1756571655339,74.70698655,200.68,200.63,0.7]
[1756571655860,79.69004415,200.68,200.63,0.7]
[1756571656035,53.69004415,200.68,200.62,0.03]
[1756571657542,49.54741338,200.68,200.62,0.03]
[1756571659044,9.11882872,200.68,200.63,0.7]
[1756571659236,48.84741338,200.68,200.63,0.7]
[1756571660953,49.54741338,200.68,200.63,0.7]
[1756571663338,53.6831845,200.68,200.62,0.03]
[1756571664757,53.68157605,200.68,200.62,0.03]
[1756571665130,49.54741338,200.68,200.62,0.03]
[1756571665440,49.54741338,200.68,200.64,0.03]
[1756571665828,10.38741338,200.68,200.64,0.03]
[1756571666129,49.50741338,200.68,200.64,0.03]
[1756571667952,10.38741338,200.68,200.64,0.03]
[1756571668152,49.50741338,200.68,200.64,0.03]
[1756571670058,10.38741338,200.68,200.64,0.03]
[1756571670354,49.48741338,200.68,200.64,0.03]
[1756571672752,4.9830576,200.68,200.64,0.03]
[1756571672959,30.9830576,200.68,200.65,0.69]
[1756571673259,74.74741338,200.68,200.65,0.69]
[1756571675652,74.74741338,200.68,200.64,0.03]
[1756571675653,43.76435578,200.68,200.67,0.89]
[1756571675867,43.76435578,200.68,200.67,0.2]
[1756571676038,69.76435578,200.68,200.67,0.2]
[1756571677279,74.74741338,200.68,200.67,0.2]
[1756571677951,49.46741338,200.68,200.67,0.2]
[1756571678157,53.60074067,200.68,200.67,0.2]
[1756571678462,49.46741338,200.68,200.67,0.2]
[1756571680471,54.97092107,200.68,200.67,0.2]
[1756571682652,49.44741338,200.68,200.67,0.2]
[1756571683155,54.9668653,200.68,200.67,0.2]
[1756571683654,56.9658163,200.68,200.67,0.2]
[1756571684263,51.44636438,200.68,200.67,0.2]
[1756571684851,51.42636438,200.68,200.67,0.2]
[1756571685577,51.40636438,200.68,200.67,0.2]
[1756571687475,59.69162592,200.68,200.67,0.2]
[1756571688274,51.40636438,200.68,200.67,0.2]
[1756571692499,30.70435578,200.65,200.64,0.03]
[1756571692696,77.96519995,200.65,200.64,0.03]
[1756571692997,70.36435578,200.65,200.64,0.03]
[1756571693295,72.36360678,200.65,200.64,0.03]
[1756571694304,77.34740942,200.65,200.64,0.03]
[1756571696996,81.36902795,200.65,200.64,0.03]
[1756571697566,42.42902795,200.65,200.64,0.03]
[1756571697770,81.32902795,200.65,200.64,0.03]
[1756571697992,84.90991168,200.65,200.64,0.72]
[1756571698166,74.58815842,200.65,200.64,0.72]
[1756571699286,74.58815842,200.65,200.64,0.03]
[1756571699486,70.45125541,200.65,200.64,0.72]
[1756571699792,75.15561119,200.65,200.64,0.72]
[1756571700384,5.55125541,200.65,200.64,0.72]
[1756571700584,38.92,200.65,200.64,0.72]
[1756571701972,43.08716186,200.65,200.64,0.72]
[1756571702999,38.92,200.65,200.64,0.72]
[1756571703293,43.08716186,200.66,200.64,0.72]
[1756571703797,38.92,200.67,200.65,4.70435578]
[1756571703996,38.92,200.67,200.66,0.69]
[1756571704303,43.08716186,200.68,200.66,0.69]
[1756571704672,38.92,200.68,200.66,0.69]
[1756571706375,0.06,200.69,200.67,4.70435578]
[1756571706570,0.06,200.69,200.68,0.69]
[1756571706998,0.06,200.69,200.68,5.39435578]
[1756571707384,0.06,200.69,200.68,23.97300739]
[1756571709091,0.06,200.69,200.68,28.67736317]
[1756571709289,1e-08,200.69,200.68,28.67736317]
[1756571709604,1e-08,200.69,200.68,23.97300739]
[1756571711079,1e-08,200.69,200.68,28.67736317]
[1756571711997,0.06,200.74,200.72,13.59559401]
[1756571712210,0.06,200.74,200.73,4.70435578]
[1756571712384,0.06,200.74,200.73,5.39435578]
[1756571712986,0.06,200.74,200.73,10.37617215]
[1756571713379,0.06,200.74,200.73,23.97176616]
[1756571714188,0.67,200.86,200.74,13.59559401]
[1756571714401,0.67,200.86,200.83,4.70435578]
[1756571714799,26.0,200.85,200.83,4.70435578]
[1756571715384,26.67,200.85,200.82,4.70435578]
[1756571715592,26.67,200.85,200.81,4.70435578]
[1756571717005,0.67,200.84,200.81,4.70435578]
[1756571717989,4.70435578,200.86,200.81,5.39435578]
[1756571718204,64.88,200.87,200.83,4.70435578]
[1756571718416,0.67,200.86,200.83,4.70435578]
[1756571719312,0.67,200.86,200.82,4.70435578]
[1756571719736,0.67,200.86,200.83,4.70435578]
[1756571719930,0.06,200.88,200.83,0.69]